bitfinex-derivatives/quotes_BTCF0:USTF0_20220103
["timestamp","ask_amount","ask_price","bid_price","bid_amount"]
[1641211427933,3.08559217,47351.0,47347.0,0.59192989]
[1641211428133,3.22046561,47351.0,47344.0,0.73226556]
[1641211428333,0.18,47349.0,47348.0,0.11988777]
[1641211428536,1.289,47349.0,47345.0,0.11988777]
[1641211428735,0.001,47346.0,47344.0,0.59192989]
[1641211428935,0.001,47345.0,47344.0,0.59192989]
[1641211429135,1.057077,47345.0,47344.0,0.59192989]
[1641211429336,1.058077,47345.0,47344.0,0.59192989]
[1641211429537,1.247077,47345.0,47343.0,0.59192989]
[1641211429735,0.002,47344.0,47343.0,0.59192989]
[1641211429935,0.1026775,47344.0,47343.0,0.59192989]
[1641211430136,1.1587885,47344.0,47343.0,0.59192989]
[1641211430337,2.2647885,47344.0,47343.0,0.59192989]
[1641211430538,2.28491986,47344.0,47342.0,0.59192989]
[1641211430735,0.001,47343.0,47342.0,0.59192989]
[1641211431138,1.057133,47343.0,47341.0,0.82491243]
[1641211431339,1.056133,47343.0,47342.0,0.82491243]
[1641211431536,1.243133,47343.0,47342.0,0.82491243]
[1641211431937,1.242133,47343.0,47342.0,0.82491243]
[1641211432135,1.244133,47343.0,47342.0,0.82491243]
[1641211432337,1.243133,47343.0,47342.0,0.82491243]
[1641211432838,1.058133,47343.0,47342.0,0.82491243]
[1641211433438,1.244133,47343.0,47342.0,0.82491243]
[1641211434837,1.057133,47343.0,47342.0,0.82491243]
[1641211435538,1.248133,47343.0,47342.0,0.82491243]
[1641211435939,1.248133,47343.0,47340.0,2.13794462]
[1641211435940,1.248133,47343.0,47341.0,0.59571919]
[1641211436141,0.001,47342.0,47341.0,0.59571919]
[1641211436539,1.057155,47342.0,47341.0,0.59571919]
[1641211436939,1.057155,47342.0,47340.0,1.7842134]
[1641211437139,1.056155,47342.0,47340.0,1.7842134]
[1641211437541,0.147,47342.0,47340.0,1.7842134]
[1641211437741,1.056166,47341.0,47340.0,1.7842134]
[1641211439041,1.056166,47341.0,47340.0,1.9642134]
[1641211439242,1.056166,47341.0,47340.0,1.13930097]
[1641211439941,1.056166,47341.0,47340.0,0.95930097]
[1641211441142,1.056166,47341.0,47340.0,1.79340094]
[1641211441541,1.219166,47341.0,47340.0,1.79340094]
[1641211442641,1.219166,47341.0,47340.0,1.97340094]
[1641211442841,1.056166,47341.0,47340.0,1.79340094]
[1641211443041,1.057166,47341.0,47340.0,1.79340094]
[1641211443245,1.057166,47341.0,47340.0,0.95930097]
[1641211443246,1.056166,47341.0,47340.0,0.95930097]
[1641211443846,1.07729772,47341.0,47340.0,1.07919011]
[1641211444244,1.07829772,47341.0,47340.0,1.91310063]
[1641211445045,1.07729772,47341.0,47340.0,1.79321149]
[1641211445644,1.25729772,47341.0,47340.0,1.79321149]
[1641211445844,1.25629772,47341.0,47340.0,1.79321149]
[1641211446044,1.25629772,47341.0,47340.0,0.95930097]
[1641211446744,1.32810772,47341.0,47340.0,0.0001]
[1641211446946,1.14910772,47341.0,47340.0,0.0001]
[1641211447144,1.32910772,47341.0,47340.0,0.0001]
[1641211447543,1.28010772,47341.0,47340.0,0.0001]
[1641211447746,2.71890639,47341.0,47340.0,0.0001]
[1641211447945,2.89890639,47341.0,47340.0,0.0001]
[1641211448145,2.89990639,47341.0,47340.0,0.0001]
[1641211448345,2.72090639,47341.0,47340.0,0.0001]
[1641211448544,1.28110772,47341.0,47340.0,0.0001]
[1641211448746,1.15110772,47341.0,47340.0,0.0001]
[1641211448945,1.07929772,47341.0,47340.0,0.0001]
[1641211449148,1.25929772,47341.0,47340.0,0.0001]
[1641211449346,1.07929772,47341.0,47340.0,0.0001]
[1641211449545,1.26129772,47341.0,47340.0,0.0001]
[1641211449748,1.44129772,47341.0,47340.0,0.0001]
[1641211450547,1.26129772,47341.0,47340.0,0.0001]
[1641211450747,1.07929772,47341.0,47340.0,0.0001]
[1641211450948,1.07829772,47341.0,47340.0,0.0001]
[1641211451148,1.25929772,47341.0,47340.0,0.0001]
[1641211451549,1.25929772,47341.0,47335.0,1.79318171]
[1641211451550,1.52865772,47341.0,47335.0,1.79318171]
[1641211451752,1.52865772,47341.0,47333.0,1.17864365]
[1641211451753,0.181,47336.0,47333.0,1.17864365]
[1641211451949,0.001,47334.0,47333.0,1.17864365]
[1641211452150,1.108,47334.0,47318.0,3.44050269]
[1641211452349,0.14033567,47330.0,47319.0,0.14033567]
[1641211452648,0.001,47325.0,47319.0,0.26025843]
[1641211452848,0.001,47321.0,47319.0,0.26025843]
[1641211453049,0.02214174,47321.0,47320.0,0.12002276]
[1641211453249,0.82037774,47321.0,47320.0,0.12002276]
[1641211453448,0.98537774,47321.0,47320.0,0.0001]
[1641211453752,0.98437774,47321.0,47320.0,0.0001]
[1641211453949,1.08074072,47321.0,47320.0,0.0001]
[1641211454149,1.08174072,47321.0,47320.0,0.0001]
[1641211454951,0.91574072,47321.0,47320.0,0.1801]
[1641211455150,0.0211381,47324.0,47320.0,0.1801]
[1641211455452,0.165,47321.0,47320.0,0.1801]
[1641211456250,0.165,47321.0,47320.0,0.0001]
[1641211456852,0.0211381,47324.0,47320.0,0.1801]
[1641211457050,0.09606151,47323.0,47320.0,0.1801]
[1641211457250,0.09606151,47323.0,47320.0,0.0001]
[1641211457450,1.056602,47322.0,47320.0,0.0001]
[1641211458454,0.001,47321.0,47320.0,0.0001]
[1641211459456,0.185,47321.0,47320.0,0.0001]
[1641211459654,0.184,47321.0,47320.0,0.0001]
[1641211459855,0.185,47321.0,47320.0,0.0001]
[1641211460456,0.20514033,47321.0,47320.0,0.0001]
[1641211460755,1.34213433,47321.0,47320.0,0.0001]
[1641211460956,1.15813433,47321.0,47320.0,0.0001]
[1641211461556,1.33413433,47321.0,47320.0,0.0001]
[1641211461754,1.33513433,47321.0,47320.0,0.0001]
[1641211462755,1.15913433,47321.0,47320.0,0.0001]
[1641211463655,1.33813433,47321.0,47320.0,0.0001]
[1641211464256,1.33713433,47321.0,47320.0,0.0001]
[1641211464459,1.33813433,47321.0,47320.0,0.0001]
[1641211464757,1.33713433,47321.0,47320.0,0.0001]
[1641211464957,1.15913433,47321.0,47320.0,0.0001]
[1641211465557,1.33813433,47321.0,47320.0,0.0001]
[1641211467361,1.33713433,47321.0,47320.0,0.0001]
[1641211467560,1.33413433,47321.0,47320.0,0.0001]
[1641211469061,1.15813433,47321.0,47320.0,0.0001]
[1641211469564,1.34813433,47321.0,47320.0,0.0001]
[1641211469762,1.34713433,47321.0,47320.0,0.0001]
[1641211470364,1.34813433,47321.0,47320.0,0.0001]
[1641211470764,1.34713433,47321.0,47320.0,0.0001]
[1641211470963,1.15913433,47321.0,47320.0,0.0001]
[1641211471563,1.34113433,47321.0,47320.0,0.0001]
[1641211471765,1.34013433,47321.0,47320.0,0.0001]
[1641211471964,1.52113433,47321.0,47320.0,0.0001]
[1641211472867,1.52013433,47321.0,47320.0,0.0001]
[1641211473070,1.33913433,47321.0,47320.0,0.0001]
[1641211473467,1.15913433,47321.0,47320.0,0.0001]
[1641211473666,1.34613433,47321.0,47320.0,0.0001]
[1641211474372,0.28851033,47321.0,47320.0,0.0001]
[1641211474670,0.20814033,47321.0,47320.0,0.0001]
[1641211475170,0.20914033,47321.0,47320.0,0.0001]
[1641211475468,0.02214033,47321.0,47320.0,0.0001]
[1641211475669,0.11014033,47321.0,47320.0,0.0001]
[1641211475870,0.11114033,47321.0,47320.0,0.0001]
[1641211476168,0.11014033,47321.0,47320.0,0.0001]
[1641211476772,0.11108924,47321.0,47320.0,0.80598387]
[1641211477571,0.18508924,47321.0,47320.0,0.80598387]
[1641211478269,0.18608924,47321.0,47320.0,0.80598387]
[1641211478569,0.18508924,47321.0,47320.0,0.80598387]
[1641211478868,0.11108924,47321.0,47320.0,0.80598387]
[1641211479669,0.24608924,47321.0,47320.0,0.80598387]
[1641211480970,0.11108924,47321.0,47320.0,0.80598387]
[1641211481670,0.27608924,47321.0,47320.0,0.80598387]
[1641211483374,0.11108924,47321.0,47320.0,0.80598387]
[1641211483577,0.11208924,47321.0,47320.0,1.64035452]
[1641211483774,0.27708924,47321.0,47320.0,1.64035452]
[1641211483976,0.27808924,47321.0,47320.0,1.64035452]
[1641211484175,0.27808924,47321.0,47320.0,0.80598387]
[1641211484774,0.27708924,47321.0,47320.0,0.80598387]
[1641211484974,0.11208924,47321.0,47320.0,0.80598387]
[1641211485575,0.27708924,47321.0,47320.0,0.80598387]
[1641211485976,1.33371324,47321.0,47320.0,0.80598387]
[1641211486178,1.33371324,47321.0,47320.0,1.40429102]
[1641211486377,1.33271324,47321.0,47320.0,1.40429102]
[1641211486978,1.16771324,47321.0,47320.0,1.40429102]
[1641211487577,1.36571324,47321.0,47320.0,1.40429102]
[1641211488280,1.36671324,47321.0,47320.0,1.40429102]
[1641211488681,1.36571324,47321.0,47320.0,1.40429102]
[1641211489081,1.16771324,47321.0,47320.0,1.40429102]
[1641211489584,1.34871324,47321.0,47320.0,0.59840715]
[1641211489983,1.34871324,47321.0,47320.0,0.0001]
[1641211490790,1.16771324,47321.0,47320.0,0.0001]
[1641211491492,1.36471324,47321.0,47320.0,0.0001]
[1641211492796,1.16771324,47321.0,47320.0,0.0001]
[1641211493596,1.35071324,47321.0,47320.0,0.0001]
[1641211494497,1.35171324,47321.0,47320.0,0.0001]
[1641211494896,1.16871324,47321.0,47320.0,0.0001]
[1641211495599,1.35771324,47321.0,47320.0,0.0001]
[1641211496101,1.35871324,47321.0,47320.0,0.0001]
[1641211496497,1.35771324,47321.0,47320.0,0.0001]
[1641211496799,1.35871324,47321.0,47320.0,0.0001]
[1641211496999,1.16871324,47321.0,47320.0,0.0001]
[1641211497701,1.36071324,47321.0,47320.0,0.0001]
[1641211498301,1.36171324,47321.0,47320.0,0.0001]
[1641211498902,1.31004891,47321.0,47320.0,0.0001]
[1641211499303,1.31004891,47321.0,47314.0,0.59830715]
[1641211499502,0.18,47315.0,47314.0,0.59830715]
[1641211499702,0.26417,47315.0,47314.0,0.59830715]
[1641211500002,1.320928,47315.0,47314.0,0.59830715]
[1641211500202,1.140928,47315.0,47314.0,0.59830715]
[1641211500403,1.42449969,47315.0,47314.0,0.59830715]
[1641211500803,1.42349969,47315.0,47314.0,0.59830715]
[1641211501009,1.42449969,47315.0,47314.0,0.59830715]
[1641211501502,1.42449969,47315.0,47310.0,0.14043567]
[1641211501503,1.60949969,47315.0,47310.0,0.14043567]
[1641211501703,0.001,47311.0,47310.0,0.14043567]
[1641211502104,1.056847,47311.0,47310.0,0.14043567]
[1641211502504,2.5860068,47314.0,47310.0,0.14043567]
[1641211502704,1.056847,47311.0,47310.0,0.14043567]
[1641211502903,1.057847,47311.0,47310.0,0.14043567]
[1641211503104,0.001,47311.0,47310.0,0.14043567]
[1641211503305,1.057847,47311.0,47310.0,0.14043567]
[1641211503507,1.239847,47311.0,47310.0,0.14043567]
[1641211504107,1.240847,47311.0,47310.0,0.14043567]
[1641211504306,1.33954115,47311.0,47310.0,0.14043567]
[1641211504506,1.34054115,47311.0,47310.0,0.14043567]
[1641211504707,2.86970095,47311.0,47310.0,0.14043567]
[1641211505007,2.68670095,47311.0,47310.0,0.14043567]
[1641211505607,2.86870095,47311.0,47310.0,0.14043567]
[1641211506508,1.42949006,47311.0,47310.0,0.14043567]
[1641211506908,1.24749006,47311.0,47310.0,0.14043567]
[1641211507508,1.42949006,47311.0,47310.0,0.14043567]
[1641211508609,1.43049006,47311.0,47310.0,0.14043567]
[1641211509010,1.24849006,47311.0,47310.0,0.14043567]
[1641211509610,1.43249006,47311.0,47310.0,0.14043567]
[1641211511011,1.24849006,47311.0,47310.0,0.14043567]
[1641211511213,1.24849006,47311.0,47310.0,0.0001]
[1641211511611,1.43649006,47311.0,47310.0,0.0001]
[1641211512213,1.43549006,47311.0,47310.0,0.0001]
[1641211512413,1.43649006,47311.0,47310.0,0.0001]
[1641211513014,1.26863788,47311.0,47310.0,0.0001]
[1641211513214,1.40997355,47311.0,47310.0,0.0001]
[1641211513614,1.60097355,47311.0,47310.0,0.0001]
[1641211514316,4.26651955,47311.0,47304.0,0.59830715]
[1641211514516,0.801,47306.0,47301.0,0.59830715]
[1641211514717,2.8653243,47302.0,47301.0,0.59830715]
[1641211514916,2.9625742,47302.0,47301.0,0.59830715]
[1641211515116,3.9723622,47302.0,47301.0,0.59830715]
[1641211515817,4.1573622,47302.0,47301.0,0.59830715]
[1641211516521,4.1563622,47302.0,47297.0,0.59997099]
[1641211516721,0.181,47298.0,47297.0,0.59997099]
[1641211516920,0.181,47298.0,47290.0,1.3100059]
[1641211517119,0.001,47293.0,47290.0,1.3100059]
[1641211517319,0.001,47291.0,47290.0,1.3100059]
[1641211517519,0.05896,47291.0,47290.0,0.0001]
[1641211517718,1.296098,47291.0,47290.0,0.0001]
[1641211517919,1.13725607,47291.0,47290.0,0.0001]
[1641211518722,1.13625607,47291.0,47290.0,0.0001]
[1641211518921,1.13725607,47291.0,47290.0,0.0001]
[1641211519120,1.13625607,47291.0,47290.0,0.0001]
[1641211519323,1.115098,47291.0,47290.0,0.1801]
[1641211519521,1.20604691,47291.0,47290.0,0.1801]
[1641211519721,1.25904691,47291.0,47290.0,0.1861]
[1641211519920,1.36108324,47291.0,47290.0,0.1861]
[1641211520322,2.7959565,47291.0,47290.0,0.1861]
[1641211520924,2.9229565,47291.0,47290.0,0.0001]
[1641211521325,1.48808324,47291.0,47290.0,0.0001]
[1641211521622,1.49708324,47291.0,47290.0,0.0001]
[1641211522023,1.49808324,47291.0,47290.0,0.0001]
[1641211522823,1.49708324,47291.0,47290.0,0.0001]
[1641211523022,1.30908324,47291.0,47290.0,0.0001]
[1641211523222,1.44841891,47291.0,47290.0,0.0001]
[1641211523428,1.53947,47291.0,47290.0,0.0001]
[1641211523625,1.73047,47291.0,47290.0,0.0001]
[1641211524026,1.72947,47291.0,47290.0,0.0001]
[1641211524226,1.73047,47291.0,47290.0,0.0001]
[1641211524928,1.53947,47291.0,47290.0,0.0001]
[1641211525129,2.64647,47291.0,47280.0,0.0001]
[1641211525331,0.181,47281.0,47280.0,0.0001]
[1641211525529,0.24008,47281.0,47280.0,0.0001]
[1641211525729,1.296598,47281.0,47280.0,0.0001]
[1641211525929,1.116598,47281.0,47280.0,0.0001]
[1641211526430,1.22140474,47281.0,47280.0,0.0001]
[1641211527631,1.41340474,47281.0,47280.0,0.0001]
[1641211528231,1.41440474,47281.0,47280.0,0.0001]
[1641211528931,1.22240474,47281.0,47280.0,0.0001]
[1641211529132,1.22140474,47281.0,47280.0,0.0001]
[1641211529333,1.22240474,47281.0,47280.0,0.0001]
[1641211529536,1.22240474,47281.0,47274.0,0.14033567]
[1641211529734,0.001,47275.0,47274.0,0.14033567]
[1641211529934,0.002,47275.0,47274.0,0.14033567]
[1641211530136,1.058652,47275.0,47274.0,0.14033567]
[1641211530336,1.058652,47275.0,47273.0,0.02]
[1641211530637,0.002,47274.0,47273.0,0.02]
[1641211531038,1.059675,47274.0,47273.0,0.02]
[1641211531235,1.14009262,47274.0,47273.0,0.02]
[1641211531637,1.33009262,47274.0,47273.0,0.02]
[1641211532855,1.33109262,47274.0,47273.0,0.02]
[1641211533257,1.33009262,47274.0,47273.0,0.02]
[1641211534858,1.33109262,47274.0,47273.0,0.02]
[1641211535059,1.22912398,47274.0,47273.0,0.66351189]
[1641211535262,1.22912398,47274.0,47273.0,1.26041079]
[1641211535460,1.22812398,47274.0,47273.0,1.26041079]
[1641211535660,1.41912398,47274.0,47273.0,1.26041079]
[1641211535862,1.59912398,47274.0,47273.0,1.26041079]
[1641211536261,1.41912398,47274.0,47273.0,0.66351189]
[1641211536960,1.22812398,47274.0,47273.0,0.66351189]
[1641211537163,1.22812398,47274.0,47273.0,1.26372094]
[1641211537561,1.41912398,47274.0,47273.0,1.26372094]
[1641211538260,0.59712398,47274.0,47273.0,1.45351494]
[1641211538461,0.02116354,47281.0,47273.0,1.45351494]
[1641211538661,0.02116354,47281.0,47276.0,0.18]
[1641211538860,0.002,47277.0,47276.0,0.18]
[1641211539060,0.001,47277.0,47276.0,0.18]
[1641211539261,0.001,47277.0,47276.0,0.32033567]
[1641211539660,0.02116354,47281.0,47276.0,0.33433567]
[1641211539864,0.0315,47287.0,47278.0,0.60020905]
[1641211540266,0.02115954,47279.0,47278.0,0.60020905]
[1641211540662,0.02115954,47279.0,47276.0,0.33433567]
[1641211541062,0.07709678,47278.0,47276.0,0.14033567]
[1641211541264,1.13468178,47278.0,47276.0,0.14033567]
[1641211541663,1.13468178,47278.0,47276.0,0.33233567]
[1641211543163,1.13468178,47278.0,47276.0,0.14033567]
[1641211543864,1.13468178,47278.0,47276.0,0.33033567]
[1641211544265,0.8547478,47277.0,47276.0,0.33033567]
[1641211544464,0.8557478,47277.0,47276.0,0.33033567]
[1641211544664,1.9123548,47277.0,47276.0,0.33033567]
[1641211544864,1.9133548,47277.0,47276.0,0.33033567]
[1641211545066,1.9133548,47277.0,47276.0,0.14033567]
[1641211545365,1.07876896,47277.0,47276.0,0.14033567]
[1641211545765,1.07976896,47277.0,47276.0,0.32733567]
[1641211545965,1.07876896,47277.0,47276.0,0.32733567]
[1641211546165,1.07976896,47277.0,47276.0,0.32733567]
[1641211546365,1.07876896,47277.0,47276.0,0.32733567]
[1641211546565,1.07876896,47277.0,47276.0,0.50733567]
[1641211546966,1.07876896,47277.0,47276.0,0.32033567]
[1641211547867,1.67431826,47277.0,47276.0,0.51233567]
[1641211548368,1.67531826,47277.0,47276.0,0.51233567]
[1641211548968,1.67431826,47277.0,47276.0,0.32033567]
[1641211549169,1.67531826,47277.0,47276.0,0.32033567]
[1641211549372,1.91353797,47277.0,47276.0,0.32033567]
[1641211549771,1.91353797,47277.0,47276.0,0.51233567]
[1641211550972,1.91353797,47277.0,47276.0,0.32033567]
[1641211551676,1.91253797,47277.0,47276.0,0.51233567]
[1641211552074,1.91353797,47277.0,47276.0,0.51233567]
[1641211552474,1.89237601,47277.0,47276.0,0.51233567]
[1641211552677,1.058607,47277.0,47276.0,0.51233567]
[1641211552874,1.65341307,47277.0,47276.0,0.51233567]
[1641211553076,1.65341307,47277.0,47276.0,0.32033567]
[1641211553775,1.65341307,47277.0,47276.0,0.51433567]
[1641211553977,1.058607,47277.0,47276.0,0.51433567]
[1641211554476,1.058607,47277.0,47276.0,0.33433567]
[1641211554677,1.07876858,47277.0,47276.0,0.33433567]
[1641211554877,1.67457465,47277.0,47276.0,0.33433567]
[1641211555077,1.67457465,47277.0,47276.0,0.14033567]
[1641211555477,1.07876858,47277.0,47276.0,0.14033567]
[1641211555678,1.07876858,47277.0,47276.0,0.33333567]
[1641211555679,1.16879253,47277.0,47276.0,0.33333567]
[1641211556678,2.00278973,47277.0,47276.0,0.33333567]
[1641211556878,2.00278973,47277.0,47276.0,0.14033567]
[1641211557479,1.16879253,47277.0,47276.0,0.14033567]
[1641211557678,1.16879253,47277.0,47276.0,0.32933567]
[1641211559080,1.16879253,47277.0,47276.0,0.14033567]
[1641211559682,1.16879253,47277.0,47276.0,0.33033567]
[1641211560083,2.36018325,47277.0,47276.0,0.33033567]
[1641211561182,2.36018325,47277.0,47276.0,0.14033567]
[1641211561783,2.36018325,47277.0,47276.0,0.33033567]
[1641211563085,2.36018325,47277.0,47276.0,0.14033567]
[1641211563685,2.36018325,47277.0,47276.0,0.32933567]
[1641211565089,2.36018325,47277.0,47276.0,0.14033567]
[1641211565689,2.36018325,47277.0,47276.0,0.32933567]
[1641211567090,2.36018325,47277.0,47276.0,0.14033567]
[1641211567590,1.16879253,47277.0,47276.0,0.14033567]
[1641211567791,1.16879253,47277.0,47276.0,0.32833567]
[1641211568192,0.39746325,47289.0,47276.0,0.33812967]
[1641211568393,1.87,47291.0,47281.0,0.18]
[1641211568691,0.001,47282.0,47281.0,0.18]
[1641211568892,0.002,47282.0,47281.0,0.18]
[1641211569091,0.02315731,47282.0,47281.0,0.18]
[1641211569291,0.02215731,47282.0,47281.0,0.18]
[1641211569692,0.02215731,47282.0,47281.0,0.51533567]
[1641211571097,0.02215731,47282.0,47281.0,0.32033567]
[1641211571692,0.02215731,47282.0,47281.0,0.51533567]
[1641211572293,0.02315731,47282.0,47281.0,1.11544396]
[1641211572493,0.02215731,47282.0,47281.0,1.11544396]
[1641211572894,0.02215731,47282.0,47281.0,0.51533567]
[1641211573193,0.02215731,47282.0,47281.0,0.32033567]
[1641211573795,0.02215731,47282.0,47281.0,0.51533567]
[1641211574897,1.2143083,47282.0,47281.0,0.51533567]
[1641211575096,1.2143083,47282.0,47281.0,0.32033567]
[1641211575698,1.2153083,47282.0,47281.0,0.51433567]
[1641211576399,1.2143083,47282.0,47281.0,0.51433567]
[1641211576698,0.001,47282.0,47281.0,0.51433567]
[1641211577098,0.001,47282.0,47281.0,0.32033567]
[1641211577499,0.001,47282.0,47281.0,1.42733567]
[1641211577700,0.001,47282.0,47281.0,0.65467134]
[1641211578301,0.002,47282.0,47281.0,0.65467134]
[1641211579101,0.002,47282.0,47281.0,0.46067134]
[1641211579503,0.001,47282.0,47281.0,0.46067134]
[1641211579704,0.002,47282.0,47281.0,0.65567134]
[1641211581105,0.002,47282.0,47281.0,0.46067134]
[1641211581307,0.001,47282.0,47281.0,0.28067134]
[1641211581507,0.002,47282.0,47281.0,0.28067134]
[1641211581706,0.002,47282.0,47281.0,0.47467134]
[1641211582311,1.19415099,47282.0,47281.0,0.47467134]
[1641211583112,0.002,47282.0,47281.0,0.28067134]
[1641211583712,0.002,47282.0,47281.0,0.47567134]
[1641211583915,0.09202257,47282.0,47281.0,0.47567134]
[1641211584814,0.09102257,47282.0,47281.0,0.47567134]
[1641211585017,0.09102257,47282.0,47281.0,1.56767134]
[1641211585215,0.09102257,47282.0,47281.0,0.46067134]
[1641211585816,0.09102257,47282.0,47281.0,0.65667134]
[1641211586015,0.09102257,47282.0,47281.0,0.47667134]
[1641211586617,0.92452587,47282.0,47281.0,1.76367134]
[1641211587218,0.92452587,47282.0,47281.0,1.56767134]
[1641211587718,0.92452587,47282.0,47281.0,1.76267134]
[1641211588118,0.8345033,47282.0,47281.0,1.76267134]
[1641211588719,0.09002257,47284.0,47281.0,1.58267134]
[1641211588923,0.09002257,47284.0,47281.0,3.16934919]
[1641211589119,0.09002257,47284.0,47281.0,2.97434919]
[1641211589720,0.09002257,47284.0,47281.0,3.16934919]
[1641211590020,0.09002257,47284.0,47282.0,1.34666424]
[1641211590521,0.09002257,47284.0,47282.0,1.52666424]
[1641211591427,0.09002257,47284.0,47283.0,1.34666424]
[1641211592825,0.09002257,47284.0,47283.0,0.600138]
[1641211593626,0.09002257,47284.0,47282.0,0.600138]
[1641211593827,0.09002257,47284.0,47283.0,0.195]
[1641211595126,0.09002257,47284.0,47282.0,1.34424206]
[1641211595626,0.09002257,47284.0,47282.0,0.600138]
[1641211595839,0.09002257,47284.0,47282.0,0.795138]
[1641211596339,0.09002257,47284.0,47282.0,1.53923724]
[1641211596942,0.09002257,47284.0,47282.0,2.64623724]
[1641211597240,0.09002257,47284.0,47282.0,2.45123724]
[1641211597441,0.09002257,47284.0,47282.0,1.707138]
[1641211597642,0.09002257,47284.0,47283.0,1.287]
[1641211597842,0.09002257,47284.0,47283.0,1.391054]
[1641211598042,1.43045655,47286.0,47283.0,1.391054]
[1641211598245,0.09001921,47286.0,47283.0,1.391054]
[1641211598943,0.09001921,47286.0,47283.0,1.211054]
[1641211599145,1.43045655,47289.0,47284.0,0.84015161]
[1641211599347,1.43045655,47289.0,47285.0,0.600138]
[1641211599947,1.43045655,47289.0,47288.0,0.14033567]
[1641211601249,0.02115484,47289.0,47288.0,0.14033567]
[1641211601848,0.02115484,47289.0,47288.0,0.33033567]
[1641211602657,0.20115484,47289.0,47288.0,0.33033567]
[1641211603050,0.20115484,47289.0,47288.0,0.14033567]
[1641211603451,0.02115484,47289.0,47288.0,0.14033567]
[1641211603651,0.20115484,47289.0,47288.0,0.14033567]
[1641211603851,0.20115484,47289.0,47288.0,0.32833567]
[1641211605151,0.20115484,47289.0,47288.0,0.14033567]
[1641211605751,0.20115484,47289.0,47288.0,0.32933567]
[1641211606156,0.02115484,47289.0,47288.0,0.32933567]
[1641211606353,0.20115484,47289.0,47288.0,0.32933567]
[1641211607157,0.20115484,47289.0,47288.0,0.14033567]
[1641211607756,0.20115484,47289.0,47288.0,0.33033567]
[1641211608759,0.02115484,47289.0,47288.0,0.33033567]
[1641211608957,0.20115484,47289.0,47288.0,0.33033567]
[1641211609156,0.20115484,47289.0,47288.0,0.14033567]
[1641211609157,0.02115484,47289.0,47288.0,0.14033567]
[1641211609759,0.20115484,47289.0,47288.0,0.33033567]
[1641211610658,0.02115484,47289.0,47288.0,0.33033567]
[1641211610859,0.20115484,47289.0,47288.0,0.33033567]
[1641211611258,0.02115484,47289.0,47288.0,0.14033567]
[1641211611858,0.02115484,47289.0,47288.0,0.33033567]
[1641211613060,0.20215484,47289.0,47273.0,0.02]
[1641211613259,0.18,47288.0,47273.0,0.02]
[1641211613661,1.057507,47287.0,47273.0,0.02]
[1641211613861,1.057507,47287.0,47274.0,1.50223824]
[1641211614161,1.42993119,47279.0,47278.0,0.14033567]
[1641211614360,1.42993119,47279.0,47278.0,1.42733567]
[1641211614760,1.42993119,47279.0,47278.0,1.43712967]
[1641211615360,1.558546,47286.0,47278.0,1.25712967]
[1641211615361,1.42993119,47284.0,47278.0,1.25712967]
[1641211615661,1.42993119,47284.0,47278.0,1.96482578]
[1641211615865,1.42993119,47284.0,47278.0,2.15582578]
[1641211616063,1.42993119,47284.0,47283.0,0.14033567]
[1641211616262,1.51996076,47285.0,47283.0,0.14033567]
[1641211616862,0.09150637,47284.0,47283.0,0.14033567]
[1641211617765,0.27150637,47284.0,47283.0,0.31833567]
[1641211618164,0.18,47284.0,47283.0,0.49833567]
[1641211618564,0.27002957,47284.0,47283.0,0.49833567]
[1641211619164,0.09002957,47284.0,47283.0,0.32033567]
[1641211619863,0.09002957,47284.0,47283.0,0.51233567]
[1641211620063,0.09002957,47284.0,47283.0,0.33233567]
[1641211620270,0.09002957,47284.0,47283.0,1.05728275]
[1641211620767,1.43123565,47288.0,47283.0,1.05728275]
[1641211621165,1.43123565,47288.0,47283.0,0.86528275]
[1641211621765,1.43123565,47288.0,47284.0,0.72494708]
[1641211622166,1.43123565,47288.0,47285.0,0.14033567]
[1641211623467,1.43123565,47290.0,47285.0,0.14033567]
[1641211623866,1.43123565,47290.0,47285.0,0.33033567]
[1641211624272,1.43123565,47290.0,47285.0,0.51033567]
[1641211624467,1.43123565,47290.0,47288.0,0.18]
[1641211624668,1.52126522,47291.0,47288.0,1.34459]
[1641211625969,0.09002957,47294.0,47288.0,1.53859]
[1641211626171,0.09002957,47294.0,47293.0,1.24733567]
[1641211627273,1.43123565,47296.0,47293.0,1.24733567]
[1641211627972,1.43123565,47296.0,47294.0,0.009794]
[1641211628176,1.43123565,47298.0,47295.0,1.42733567]
[1641211629072,1.43123565,47298.0,47297.0,1.107]
[1641211629477,1.43123565,47299.0,47297.0,1.107]
[1641211629873,1.43123565,47299.0,47297.0,0.188]
[1641211630475,1.43123565,47298.0,47297.0,0.188]
[1641211631281,1.43123565,47298.0,47296.0,0.14033567]
[1641211631484,0.09002957,47300.0,47296.0,0.14033567]
[1641211631883,0.09002957,47300.0,47296.0,0.33033567]
[1641211632484,0.09775337,47299.0,47296.0,0.33033567]
[1641211633288,0.09775337,47299.0,47296.0,0.14033567]
[1641211633485,0.09002957,47298.0,47296.0,0.14033567]
[1641211633885,0.09002957,47298.0,47296.0,0.32933567]
[1641211634498,0.36290574,47305.0,47297.0,1.116794]
[1641211634688,1.8986,47323.0,47304.0,0.18]
[1641211634888,1.8986,47323.0,47313.0,0.18]
[1641211635190,1.8485,47327.0,47319.0,1.107]
[1641211635389,0.02113602,47330.0,47320.0,0.009794]
[1641211635589,1.67503951,47322.0,47320.0,0.009794]
[1641211635790,1.67503951,47322.0,47321.0,1.287]
[1641211636189,1.67503951,47322.0,47321.0,1.42733567]
[1641211637201,1.79491405,47332.0,47321.0,1.42733567]
[1641211637402,1.79491405,47332.0,47321.0,1.24733567]
[1641211637602,0.32033567,47334.0,47321.0,1.24733567]
[1641211638003,0.32033567,47334.0,47321.0,1.42633567]
[1641211638203,1.056468,47333.0,47321.0,1.42633567]
[1641211638603,0.02113653,47329.0,47321.0,1.42633567]
[1641211639803,0.02113653,47329.0,47321.0,1.24733567]
[1641211640003,0.24308132,47334.0,47321.0,1.42933567]
[1641211640004,1.55937162,47325.0,47321.0,1.42933567]
[1641211640804,1.55937162,47326.0,47321.0,1.42933567]
[1641211641204,1.55937162,47326.0,47321.0,1.24733567]
[1641211641904,1.55937162,47326.0,47321.0,1.43033567]
[1641211643206,1.55937162,47326.0,47321.0,1.24733567]
[1641211643407,1.55937162,47327.0,47321.0,1.24733567]
[1641211644008,1.55937162,47327.0,47321.0,1.43333567]
[1641211645108,1.55937162,47327.0,47321.0,1.24733567]
[1641211645908,1.55937162,47327.0,47321.0,1.43433567]
[1641211646807,1.58050754,47330.0,47321.0,1.43433567]